bitfinex/quotes_BTCUSD_20241201
["timestamp","ask_amount","ask_price","bid_price","bid_amount"]
[1733033377027,0.00225656,96520.0,96519.0,0.42780871]
[1733033381806,0.00225656,96520.0,96519.0,0.4587737]
[1733033396983,0.00225656,96520.0,96519.0,0.47120209]
[1733033401141,0.00225656,96520.0,96519.0,0.47120292]
[1733033407428,0.00225656,96520.0,96519.0,0.47120365]
[1733033410615,0.00225656,96520.0,96519.0,0.4587737]
[1733033426617,0.00225656,96520.0,96519.0,0.3316737]
[1733033430509,0.00199053,96520.0,96519.0,0.3316737]
[1733033431054,0.00199053,96520.0,96519.0,0.33944505]
[1733033435822,0.00199053,96520.0,96519.0,0.46734505]
[1733033438388,0.00199053,96520.0,96519.0,0.46734235]
[1733033442147,0.001727,96534.0,96533.0,0.207183]
[1733033442375,0.001727,96534.0,96533.0,0.31779686]
[1733033442609,0.00189354,96534.0,96533.0,0.31779686]
[1733033443729,0.00189354,96534.0,96533.0,0.32279686]
[1733033444228,0.07370287,96544.0,96542.0,0.207163]
[1733033444462,0.07370287,96544.0,96543.0,0.00776865]
[1733033445121,0.07370287,96544.0,96542.0,0.207163]
[1733033445337,0.07370287,96544.0,96543.0,0.0077658]
[1733033445830,0.0494,96551.0,96545.0,0.207156]
[1733033446030,0.0494,96551.0,96547.0,0.207152]
[1733033446236,0.0494,96551.0,96547.0,0.2149178]
[1733033446473,0.0494,96551.0,96547.0,0.49440252]
[1733033446691,0.0494,96551.0,96547.0,0.2149178]
[1733033447373,0.0494,96551.0,96547.0,0.2179178]
[1733033447587,0.0494,96551.0,96547.0,0.49734137]
[1733033447811,0.00777433,96548.0,96547.0,0.49734137]
[1733033448029,0.001727,96548.0,96547.0,0.2179178]
[1733033448252,0.001727,96548.0,96547.0,0.49733663]
[1733033448506,0.001727,96548.0,96547.0,0.48957083]
[1733033448730,0.001727,96548.0,96547.0,0.49732992]
[1733033448943,0.001727,96548.0,96547.0,0.21791109]
[1733033449387,0.00777531,96548.0,96547.0,0.21991109]
[1733033449576,0.00777531,96548.0,96547.0,0.49923385]
[1733033449907,0.001727,96548.0,96547.0,0.49923385]
[1733033451437,0.001727,96548.0,96547.0,0.21991109]
[1733033451911,0.001727,96548.0,96547.0,0.21990631]
[1733033456189,0.001727,96548.0,96547.0,0.32275152]
[1733033459450,0.001727,96548.0,96547.0,0.60167694]
[1733033460252,0.001727,96548.0,96547.0,0.32275152]
[1733033460460,0.001727,96548.0,96547.0,0.47275152]
[1733033461114,0.001727,96548.0,96547.0,0.46499721]
[1733033461332,0.001727,96548.0,96547.0,0.472744]
[1733033461540,0.001727,96548.0,96547.0,0.469744]
[1733033461959,0.001727,96548.0,96547.0,0.467744]
[1733033462167,0.001727,96548.0,96547.0,0.546244]
[1733033462618,0.001727,96548.0,96547.0,0.551244]
[1733033463520,0.001727,96548.0,96547.0,0.560244]
[1733033463784,0.001727,96548.0,96547.0,0.551244]
[1733033464005,0.001727,96548.0,96547.0,0.627444]
[1733033464225,0.001727,96548.0,96547.0,0.631444]
[1733033464444,0.001727,96548.0,96547.0,0.638444]
[1733033465116,0.0002,96569.0,96548.0,0.2285]
[1733033465327,0.0002,96569.0,96548.0,0.339092]
[1733033467787,0.0002,96569.0,96548.0,0.348092]
[1733033467982,0.0002,96569.0,96548.0,0.355092]
[1733033468195,0.0002,96569.0,96548.0,0.76624793]
[1733033468431,0.0002,96569.0,96548.0,0.355092]
[1733033471224,0.0002,96569.0,96548.0,0.430392]
[1733033471488,0.0002,96569.0,96548.0,0.42264521]
[1733033471704,0.0002,96569.0,96548.0,0.43038134]
[1733033481159,0.0002,96569.0,96548.0,0.84124701]
[1733033481352,0.0002,96569.0,96548.0,0.43038134]
[1733033481614,0.0002,96569.0,96548.0,0.84121572]
[1733033482539,0.0002,96569.0,96548.0,0.43038134]
[1733033482751,0.0002,96569.0,96560.0,0.15]
[1733033482988,0.0002,96569.0,96561.0,0.11058134]
[1733033483187,0.0002,96569.0,96562.0,0.00773613]
[1733033483334,0.0002,96569.0,96560.0,0.15]
[1733033483335,0.0002,96569.0,96563.0,0.11058134]
[1733033483555,0.0002,96569.0,96563.0,0.31769934]
[1733033484399,0.00189305,96564.0,96563.0,0.31769934]
[1733033485075,0.00189305,96564.0,96563.0,0.30996321]
[1733033485300,0.00189305,96564.0,96563.0,0.31770829]
[1733033485546,0.00189305,96564.0,96563.0,0.32670829]
[1733033489037,0.00189305,96564.0,96563.0,0.3376104]
[1733033493781,0.00189305,96564.0,96563.0,0.61617137]
[1733033494612,0.00189305,96564.0,96563.0,0.3376104]
[1733033495764,0.00189305,96564.0,96563.0,0.3706104]
[1733033495970,0.00189305,96564.0,96563.0,0.4160104]
[1733033496584,0.00189305,96564.0,96563.0,0.6445104]
[1733033496789,0.00189305,96564.0,96563.0,0.67243098]
[1733033497234,0.00189305,96564.0,96563.0,0.67543098]
[1733033497439,0.00189305,96564.0,96563.0,0.66943098]
[1733033497644,0.00189305,96564.0,96563.0,0.67543098]
[1733033497834,0.00189305,96564.0,96563.0,0.66643098]
[1733033498045,0.00189305,96564.0,96563.0,0.67243098]
[1733033498251,0.00189305,96564.0,96563.0,0.68143098]
[1733033501029,0.00189305,96564.0,96563.0,0.67243098]
[1733033501238,0.00189305,96564.0,96563.0,0.66643098]
[1733033501462,0.00189305,96564.0,96563.0,0.67543098]
[1733033501681,0.00189305,96564.0,96563.0,0.68143098]
[1733033506089,0.00189305,96564.0,96563.0,0.68142776]
[1733033510784,0.00189305,96564.0,96563.0,0.55752776]
[1733033510989,0.00189305,96564.0,96563.0,0.52660718]
[1733033512369,0.00189305,96564.0,96563.0,0.51660718]
[1733033516157,0.00189305,96564.0,96563.0,0.50886532]
[1733033516382,0.00189305,96564.0,96563.0,0.51660981]
[1733033518095,0.00189305,96564.0,96563.0,0.49360981]
[1733033531430,0.00189305,96564.0,96563.0,0.52453213]
[1733033535646,0.00189305,96564.0,96563.0,0.52454301]
[1733033538491,0.00189305,96564.0,96563.0,0.57094301]
[1733033539163,0.00189305,96564.0,96563.0,0.56318764]
[1733033539325,0.00189305,96564.0,96563.0,0.57094491]
[1733033540485,0.00189305,96564.0,96563.0,0.68534491]
[1733033541605,0.001727,96576.0,96575.0,0.357092]
[1733033541827,0.001727,96576.0,96575.0,0.36484927]
[1733033542973,0.001727,96576.0,96575.0,0.36784927]
[1733033543199,0.001727,96576.0,96575.0,0.37384927]
[1733033545910,0.001727,96576.0,96575.0,0.37385186]
[1733033547514,0.001727,96576.0,96575.0,0.38463334]
[1733033553873,0.00166591,96576.0,96575.0,0.38421967]
[1733033556467,0.00166591,96576.0,96575.0,0.37645981]
[1733033556688,0.00166591,96576.0,96575.0,0.38422028]
[1733033557106,0.00166591,96576.0,96575.0,0.7967279]
[1733033557308,0.00166591,96576.0,96575.0,0.38422028]
[1733033557544,0.00166591,96576.0,96575.0,0.7967279]
[1733033558594,0.00166591,96576.0,96575.0,0.38422028]
[1733033558795,0.00166591,96576.0,96575.0,0.7967279]
[1733033560718,0.00166591,96576.0,96575.0,0.38422028]
[1733033561695,0.00166591,96576.0,96575.0,0.7967279]
[1733033561889,0.00166591,96576.0,96575.0,0.38422028]
[1733033562109,0.00166591,96576.0,96575.0,0.7967279]
[1733033562893,0.00166591,96576.0,96575.0,0.38422028]
[1733033563097,0.00166591,96576.0,96575.0,0.38421996]
[1733033563295,0.00166591,96576.0,96575.0,0.79672758]
[1733033564113,0.00166591,96576.0,96575.0,0.38421996]
[1733033566889,0.0786,96587.0,96581.0,0.207078]
[1733033567153,0.124,96587.0,96586.0,0.23284025]
[1733033567374,0.0454,96585.0,96579.0,0.23284025]
[1733033567598,0.0017268,96591.0,96580.0,0.00775963]
[1733033567599,0.334177,96583.0,96580.0,0.00775963]
[1733033567818,0.334177,96583.0,96581.0,0.00775963]
[1733033568050,0.334177,96583.0,96582.0,0.00775963]
[1733033568256,0.1271,96583.0,96582.0,0.00775963]
[1733033569618,0.1271,96583.0,96582.0,0.00875963]
[1733033570491,0.1271,96583.0,96582.0,0.00775963]
[1733033571548,0.0002,96589.0,96583.0,0.207075]
[1733033571759,0.0002,96589.0,96584.0,0.00775963]
[1733033571973,0.0002,96589.0,96585.0,0.00775963]
[1733033572196,0.0002,96589.0,96586.0,0.00775963]
[1733033572415,0.0002,96589.0,96587.0,0.00775963]
[1733033572631,0.00579057,96588.0,96585.0,0.207071]
[1733033572846,0.00579057,96588.0,96586.0,0.00775299]
[1733033573091,0.0002,96589.0,96587.0,0.00775299]
[1733033573281,0.0002,96589.0,96588.0,0.00775299]
[1733033573555,0.0002,96589.0,96588.0,0.00775298]
[1733033573777,0.00599243,96589.0,96588.0,0.00775298]
[1733033576447,0.00771843,96589.0,96588.0,0.00775298]
[1733033577062,0.00771843,96589.0,96588.0,0.00775293]
[1733033578559,0.001926,96589.0,96588.0,0.00775293]
[1733033579465,0.00771843,96589.0,96588.0,0.00775293]
[1733033585434,0.0253527,96589.0,96588.0,0.00775293]
[1733033585655,0.0707527,96589.0,96588.0,0.00775293]
[1733033586522,0.05311843,96589.0,96588.0,0.00775293]
[1733033597239,0.00771843,96589.0,96588.0,0.00775293]
[1733033597476,0.207065,96588.0,96580.0,0.18606951]
[1733033597882,0.00580343,96587.0,96581.0,0.00775908]
[1733033598104,0.00580343,96587.0,96580.0,0.18606951]
[1733033598105,0.00580343,96587.0,96582.0,0.00775908]
[1733033598339,0.00580343,96587.0,96583.0,0.00775908]
[1733033598593,0.00580343,96587.0,96584.0,0.00775908]
[1733033598824,0.00580343,96587.0,96585.0,0.00775908]
[1733033598989,0.00580343,96587.0,96586.0,0.00775908]
[1733033600883,0.001926,96589.0,96586.0,0.00775908]
[1733033601124,0.00580512,96587.0,96581.0,0.18606951]
[1733033601327,0.001926,96589.0,96581.0,0.18606951]
[1733033601548,0.00580419,96586.0,96581.0,0.18606951]
[1733033601776,0.001926,96589.0,96581.0,0.18606951]
[1733033601992,0.00580419,96585.0,96582.0,0.207077]
[1733033602219,0.00580419,96585.0,96581.0,0.18606951]
[1733033602673,0.001926,96589.0,96581.0,0.18606951]
[1733033603128,0.00580419,96588.0,96582.0,0.001]
[1733033603579,0.00580419,96588.0,96584.0,0.0495]
[1733033604747,0.001926,96589.0,96584.0,0.0495]
[1733033605246,0.001926,96589.0,96585.0,0.207071]
[1733033606771,0.001926,96589.0,96584.0,0.0495]
[1733033606973,0.001926,96589.0,96585.0,0.207071]
[1733033607693,0.001926,96589.0,96585.0,0.414142]
[1733033609368,0.001926,96589.0,96585.0,0.60021151]
[1733033610007,0.001926,96589.0,96585.0,0.414142]
[1733033610211,0.001926,96589.0,96585.0,0.60021151]
[1733033611510,0.001926,96589.0,96587.0,0.207067]
[1733033613889,0.001926,96589.0,96586.0,0.18606951]
[1733033614312,0.001926,96589.0,96587.0,0.207067]
[1733033616366,0.001926,96589.0,96586.0,0.18606951]
[1733033618783,0.00576699,96588.0,96586.0,0.18606951]
[1733033619252,0.01974976,96589.0,96586.0,0.18606951]
[1733033619834,0.001926,96589.0,96586.0,0.18606951]
[1733033620704,0.00577345,96588.0,96586.0,0.18606951]
[1733033621153,0.00577345,96588.0,96584.0,0.23258689]
[1733033621824,0.00577345,96588.0,96581.0,0.207078]
[1733033624028,0.00577345,96588.0,96581.0,0.414157]
[1733033624214,0.001926,96589.0,96582.0,0.207077]
[1733033627363,0.001926,96589.0,96582.0,0.414154]
[1733033628653,0.001926,96589.0,96586.0,0.207067]
[1733033634656,0.001926,96589.0,96580.0,0.207082]
[1733033634845,0.001926,96589.0,96583.0,0.207073]
[1733033635993,0.001926,96589.0,96581.0,0.20708]
[1733033636435,0.00577406,96588.0,96581.0,0.20708]
[1733033637975,0.00577406,96588.0,96579.0,0.0457]
[1733033638424,0.00577406,96588.0,96580.0,0.207082]
[1733033641998,0.00577406,96588.0,96586.0,0.18617499]
[1733033643227,0.21283906,96588.0,96586.0,0.18617499]
[1733033643711,0.1236,96587.0,96586.0,0.18617499]
[1733033644152,0.12934968,96587.0,96586.0,0.18617499]
[1733033645034,0.00574968,96587.0,96586.0,0.18617499]
[1733033647558,0.00574968,96587.0,96585.0,0.18619299]
[1733033649179,0.00574968,96587.0,96583.0,0.23274385]
[1733033649398,0.00574968,96587.0,96585.0,0.1861939]
[1733033652164,0.06063475,96587.0,96585.0,0.1861939]
[1733033653728,0.00574968,96587.0,96585.0,0.1861939]
[1733033654390,0.00574968,96587.0,96585.0,0.18619022]
[1733033655578,0.00574968,96587.0,96585.0,0.1861852]
[1733033664621,0.00574968,96587.0,96585.0,0.18617866]
[1733033666531,0.0017272,96588.0,96585.0,0.18617866]
[1733033666891,0.00574382,96587.0,96585.0,0.18617866]
[1733033667347,0.0017272,96588.0,96585.0,0.18617866]
[1733033667713,0.00574382,96587.0,96585.0,0.18617866]
[1733033667933,0.0017272,96588.0,96585.0,0.18617866]
[1733033668290,0.00574382,96587.0,96585.0,0.18617866]
[1733033668501,0.0017272,96588.0,96585.0,0.18617866]
[1733033668718,0.00574382,96586.0,96585.0,0.18617866]
[1733033668938,0.0017272,96588.0,96585.0,0.18617866]
[1733033669383,0.00574382,96587.0,96585.0,0.18617866]
[1733033669806,0.0017272,96588.0,96585.0,0.18617866]
[1733033670017,0.0017272,96587.0,96585.0,0.18617866]
[1733033672236,0.0017272,96587.0,96586.0,0.18617866]
[1733033678621,0.0017272,96587.0,96584.0,0.51539681]
[1733033678825,0.0017272,96587.0,96584.0,0.72246881]
[1733033679726,0.0017272,96587.0,96584.0,0.72248502]
[1733033682087,0.0017272,96587.0,96584.0,0.51541302]
[1733033682434,0.0017272,96587.0,96584.0,0.72248502]
[1733033685482,0.0017272,96587.0,96586.0,0.1862094]
[1733033685922,0.0017272,96587.0,96584.0,0.51541302]
[1733033686380,0.0017272,96587.0,96586.0,0.18621082]
[1733033686786,0.00723331,96587.0,96586.0,0.18621082]
[1733033686993,0.0017272,96587.0,96586.0,0.18621082]
[1733033687209,0.00723331,96587.0,96586.0,0.18621082]
[1733033687417,0.00723331,96587.0,96586.0,0.37241912]
[1733033687919,0.0017272,96587.0,96586.0,0.37241912]
[1733033688096,0.0017272,96587.0,96586.0,0.1862083]
[1733033688286,0.0017272,96587.0,96584.0,0.23274102]
[1733033688512,0.0017272,96587.0,96586.0,0.18621267]
[1733033688710,0.0017272,96587.0,96584.0,0.23274102]
[1733033688917,0.0017272,96587.0,96586.0,0.18621255]
[1733033689117,0.0017272,96587.0,96584.0,0.23274102]
[1733033695167,0.0017272,96587.0,96584.0,0.23276937]
[1733033696094,0.00550366,96586.0,96584.0,0.23276937]
[1733033696380,0.02196719,96585.0,96584.0,0.23276937]
[1733033696882,0.02747178,96585.0,96584.0,0.23276937]
[1733033699805,0.15727178,96585.0,96584.0,0.23276937]
[1733033700054,0.15727178,96585.0,96583.0,0.23276937]
[1733033700055,0.13530459,96585.0,96583.0,0.23276937]
[1733033700264,0.13530459,96585.0,96576.0,0.000863]
[1733033700265,0.13530459,96585.0,96582.0,0.23279428]
[1733033700505,0.13530459,96585.0,96584.0,0.18625494]
[1733033700694,0.207073,96584.0,96582.0,0.23279428]
[1733033701125,0.00550721,96583.0,96582.0,0.23279428]
[1733033701805,0.06099037,96583.0,96582.0,0.23279428]
[1733033703015,0.00550721,96583.0,96582.0,0.23279428]
[1733033706117,0.0017272,96585.0,96582.0,0.23279428]
[1733033706372,0.00550903,96583.0,96582.0,0.23279428]
[1733033706612,0.0017272,96585.0,96582.0,0.23279428]
[1733033706843,0.00550903,96583.0,96582.0,0.23279428]
[1733033707091,0.0017272,96585.0,96582.0,0.23279428]
[1733033707324,0.0017272,96585.0,96583.0,0.23279008]
[1733033708232,0.00550404,96584.0,96583.0,0.23279008]
[1733033713915,0.00550404,96584.0,96583.0,0.23278594]
[1733033715675,0.00550404,96584.0,96583.0,0.23278536]
[1733033716321,0.0017272,96585.0,96583.0,0.23278536]
[1733033716550,0.0017272,96585.0,96584.0,0.23278536]
[1733033719841,0.00723042,96585.0,96584.0,0.23278536]
[1733033720060,0.02937048,96585.0,96584.0,0.23278536]
[1733033722828,0.02937048,96585.0,96583.0,0.23278536]
[1733033729795,0.00723042,96585.0,96584.0,0.0488]
[1733033730241,0.0017272,96585.0,96584.0,0.0488]
[1733033739484,0.0017272,96585.0,96584.0,0.28158536]
[1733033751212,0.0017272,96585.0,96584.0,0.36458536]
[1733033751655,0.0017272,96585.0,96584.0,0.36444712]
[1733033760057,0.0017272,96585.0,96584.0,0.23264712]
[1733033761089,0.0017272,96585.0,96584.0,0.23265689]
[1733033767518,0.0017272,96585.0,96584.0,0.36095689]
[1733033767519,0.0082684,96585.0,96584.0,0.36095689]
[1733033771051,0.0082684,96585.0,96584.0,0.14070781]
[1733033771932,0.0082684,96585.0,96584.0,0.14070597]
[1733033774673,0.0082684,96585.0,96584.0,0.14070473]
[1733033774921,0.0082684,96585.0,96584.0,0.05840473]
[1733033779965,0.0082684,96585.0,96584.0,0.2910092]
[1733033780222,0.0082684,96585.0,96584.0,0.05840473]
[1733033782411,0.0082684,96585.0,96584.0,0.05840651]
[1733033784225,0.0082684,96585.0,96584.0,0.29104177]
[1733033784655,0.0082684,96585.0,96584.0,0.05840651]
[1733033785707,0.0082684,96585.0,96584.0,0.05840891]
[1733033787382,0.0082684,96585.0,96584.0,0.26548191]
[1733033795893,0.0082684,96585.0,96584.0,0.253073]
[1733033796134,0.0082684,96585.0,96584.0,0.26548252]
[1733033798114,0.0082684,96585.0,96584.0,0.01240952]
[1733033798326,0.03051186,96585.0,96584.0,0.21948252]
[1733033798544,0.01377313,96585.0,96584.0,0.21948252]
[1733033798791,0.0082684,96585.0,96584.0,0.21948252]
[1733033801029,0.0082684,96585.0,96584.0,0.01240952]
[1733033801478,0.0082684,96585.0,96584.0,0.21948252]
[1733033806339,0.0082684,96585.0,96584.0,0.26828358]
[1733033806550,0.0082684,96585.0,96584.0,0.01241058]
[1733033809265,0.0082684,96585.0,96584.0,0.01245058]
[1733033813255,0.01375156,96585.0,96584.0,0.01245058]
[1733033816413,0.01375156,96585.0,96584.0,0.01245073]
[1733033822223,0.01375156,96585.0,96584.0,0.01245055]
[1733033823553,0.03763587,96585.0,96584.0,0.24515338]
[1733033823977,0.03763587,96585.0,96584.0,0.01245055]
[1733033825436,0.03763587,96585.0,96584.0,0.01244866]
[1733033826308,0.01375156,96585.0,96584.0,0.01244866]
[1733033828832,0.01375156,96585.0,96584.0,4e-05]
[1733033829057,0.01375156,96585.0,96584.0,0.01244532]
[1733033832209,0.25419677,96585.0,96584.0,0.01244532]
[1733033832427,0.25419677,96585.0,96584.0,4e-05]
[1733033832629,0.32274067,96585.0,96584.0,4e-05]
[1733033832901,0.35509129,96585.0,96584.0,4e-05]
[1733033833420,0.37615032,96585.0,96584.0,4e-05]
[1733033834320,0.53615032,96585.0,96584.0,0.00104]
[1733033834747,0.504688,96577.0,96576.0,0.000863]
[1733033834967,0.79249255,96577.0,96576.0,0.000863]
[1733033835142,0.71141065,96577.0,96576.0,0.000863]
[1733033836378,0.70141065,96577.0,96576.0,0.000863]
[1733033836626,0.71141065,96577.0,96576.0,0.000863]
[1733033837149,0.71241065,96577.0,96576.0,0.001863]
[1733033837357,0.71230091,96577.0,96576.0,0.001863]
[1733033853960,0.71402811,96577.0,96576.0,0.001863]
[1733033860546,0.73702811,96577.0,96576.0,0.001863]
[1733033862121,0.73602811,96577.0,96576.0,0.000863]
[1733033862378,0.74402811,96577.0,96576.0,0.001863]
[1733033862628,0.77629917,96577.0,96576.0,0.001863]
[1733033866592,0.75329917,96577.0,96576.0,0.001863]
[1733033870128,0.75744517,96577.0,96576.0,0.001863]
[1733033873427,0.85035632,96577.0,96576.0,0.001863]
[1733033874330,0.75744517,96577.0,96576.0,0.001863]
[1733033874447,0.89681189,96577.0,96576.0,0.001863]
[1733033875357,0.91981189,96577.0,96576.0,0.001863]
[1733033875567,0.96626747,96577.0,96576.0,0.001863]
[1733033876627,0.78044517,96577.0,96576.0,0.001863]
[1733033884021,0.39999126,96571.0,96570.0,0.000863]
[1733033884261,0.00989026,96552.0,96550.0,0.0801]
[1733033884398,0.10284521,96551.0,96550.0,0.0801]
[1733033884750,0.10828093,96551.0,96550.0,0.0801]
[1733033884876,0.31542493,96551.0,96550.0,0.0801]
[1733033885098,0.39038375,96551.0,96550.0,0.0801]
[1733033885988,0.39038375,96551.0,96550.0,0.0811]
[1733033886205,0.40153926,96551.0,96550.0,0.0811]
[1733033886412,0.32658044,96551.0,96550.0,0.127]
[1733033886910,0.32658044,96551.0,96550.0,0.126]
[1733033888794,0.32658044,96551.0,96550.0,0.1268636]
[1733033893983,0.10828093,96551.0,96550.0,0.1268636]
[1733033894889,0.10828093,96551.0,96550.0,10.1268636]
[1733033895148,0.10284521,96551.0,96550.0,10.1268636]
[1733033895810,0.15565605,96551.0,96550.0,10.1268636]
[1733033898292,0.207129,96559.0,96550.0,10.1268636]
[1733033898293,0.207129,96559.0,96552.0,0.0459]
[1733033898529,0.207131,96557.0,96552.0,0.0459]
[1733033898747,0.10284521,96556.0,96554.0,0.0459]
[1733033898989,0.10284521,96556.0,96555.0,0.1236]
[1733033899219,0.15554476,96556.0,96555.0,0.1236]
[1733033900320,0.15654476,96556.0,96555.0,0.1236]
[1733033900735,0.15854476,96556.0,96555.0,0.1236]
[1733033924543,0.15854476,96556.0,96555.0,0.1244635]
[1733033928631,0.15854476,96556.0,96555.0,0.0467635]
[1733033929979,0.15854476,96556.0,96555.0,0.0008635]
[1733033941131,0.17843502,96556.0,96555.0,0.0008635]
[1733033941361,0.22763502,96556.0,96555.0,0.0008635]
[1733033941608,0.25998807,96556.0,96555.0,0.0008635]
[1733033941825,0.33858807,96556.0,96555.0,0.0008635]
[1733033942296,0.49875832,96556.0,96555.0,0.0008635]
[1733033943168,0.69534592,96556.0,96555.0,0.0008635]
[1733033943358,0.50801273,96556.0,96555.0,0.0008635]
[1733033944127,0.50601273,96556.0,96555.0,0.0008635]
[1733033944338,0.65869104,96556.0,96555.0,0.0028635]
[1733033944777,0.65469104,96556.0,96555.0,0.0018635]
[1733033944997,0.65869092,96556.0,96555.0,0.0018635]
[1733033945233,0.51901273,96556.0,96555.0,0.0018635]
[1733033945462,0.65866307,96556.0,96555.0,0.0018635]
[1733033945688,0.65865891,96556.0,96555.0,0.0018635]
[1733033945948,0.51901273,96556.0,96555.0,0.0018635]
[1733033946165,0.65865891,96556.0,96555.0,0.0018635]
[1733033946397,0.51901273,96556.0,96555.0,0.0018635]
[1733033946631,0.65865891,96556.0,96555.0,0.0018635]
[1733033946856,0.51901273,96556.0,96555.0,0.0018635]
[1733033947330,0.65857701,96556.0,96555.0,0.0018635]
[1733033947573,0.65857551,96556.0,96555.0,0.0018635]
[1733033949334,0.51901273,96556.0,96555.0,0.0018635]
[1733033952749,0.61198256,96556.0,96555.0,0.0018635]
[1733033953627,0.65848429,96556.0,96555.0,0.0018635]
[1733033955512,0.51901273,96556.0,96555.0,0.0018635]
[1733033961304,0.48665968,96556.0,96555.0,0.0018635]
[1733033961632,0.51892787,96556.0,96555.0,0.0018635]
[1733033962807,0.54192787,96556.0,96555.0,0.0018635]
[1733033968450,0.41412787,96556.0,96555.0,0.0018635]
[1733033968889,0.33842832,96556.0,96555.0,0.0018635]
[1733033974480,0.41622832,96556.0,96555.0,0.0018635]
[1733033976790,0.55575469,96556.0,96555.0,0.0018635]
[1733033977028,0.55575482,96556.0,96555.0,0.0018635]
[1733033977773,0.41622832,96556.0,96555.0,0.0018635]
[1733033977991,0.51905978,96556.0,96555.0,0.0018635]
[1733033978609,0.70509495,96556.0,96555.0,0.0018635]
[1733033979130,0.44125978,96556.0,96555.0,0.0018635]
[1733033979399,0.44125978,96556.0,96555.0,0.1298635]
[1733033979608,0.58083294,96556.0,96555.0,0.1298635]
[1733033979827,0.44125978,96556.0,96555.0,0.0492635]
[1733033981253,0.62741643,96556.0,96555.0,0.0492635]
[1733033982536,0.44125978,96556.0,96555.0,0.0492635]
[1733033983027,0.62747266,96556.0,96555.0,0.0492635]
[1733033983430,0.44125978,96556.0,96555.0,0.0492635]
[1733033985136,0.6741686,96556.0,96555.0,0.0492635]
[1733033985553,0.67421188,96556.0,96555.0,0.0492635]
[1733033987879,0.30800366,96556.0,96555.0,0.0492635]
[1733033988323,0.36892041,96556.0,96555.0,0.0492635]
[1733033988542,0.27573547,96556.0,96555.0,0.0492635]
[1733034000530,0.26584521,96556.0,96555.0,0.0492635]
[1733034001622,0.11584521,96556.0,96555.0,0.0492635]
[1733034001870,0.11584521,96556.0,96555.0,0.1284635]
[1733034002315,0.15969756,96556.0,96555.0,0.1284635]
[1733034012501,0.15969756,96556.0,96555.0,0.0018635]
[1733034027868,0.36193258,96556.0,96555.0,0.0018635]
[1733034047525,0.51483258,96556.0,96555.0,0.0018635]
[1733034048363,0.51483258,96556.0,96555.0,5e-07]
[1733034049446,0.51083258,96556.0,96555.0,5e-07]
[1733034049885,0.51483258,96556.0,96555.0,5e-07]
[1733034050339,0.17279026,96551.0,96550.0,9.9801491]
[1733034050560,0.73400749,96551.0,96550.0,9.9387191]
[1733034050762,0.73400749,96551.0,96550.0,9.8558591]
[1733034050968,0.73400749,96551.0,96550.0,9.8144291]
[1733034051987,0.74300749,96551.0,96550.0,9.7532841]
[1733034052185,0.74900749,96551.0,96550.0,9.7128541]
[1733034052778,0.74900749,96551.0,96550.0,9.6921391]
[1733034053315,0.74900749,96551.0,96550.0,9.6722875]
[1733034053538,0.74900749,96551.0,96550.0,9.6515725]
[1733034053758,0.74900749,96551.0,96550.0,9.6101425]
[1733034054033,0.7807215,96551.0,96550.0,9.5065675]
[1733034055680,0.7807215,96551.0,96550.0,9.4237075]
[1733034056620,0.7807215,96551.0,96550.0,9.3822775]
[1733034056847,0.7807215,96551.0,96550.0,9.3615625]
[1733034057308,0.7807215,96551.0,96550.0,9.25237312]
[1733034057769,0.7807215,96551.0,96550.0,9.14232477]
[1733034057993,0.7807215,96551.0,96550.0,9.10089477]
[1733034058191,0.7807215,96551.0,96550.0,9.05946477]
[1733034058585,0.7657215,96551.0,96550.0,9.05746477]
[1733034059052,1.0491215,96551.0,96550.0,8.92796958]
[1733034059270,1.05085581,96551.0,96550.0,8.92796958]
[1733034059504,1.05985581,96551.0,96550.0,8.92896958]
[1733034059753,1.05985581,96551.0,96550.0,8.90825458]
[1733034059981,1.05985581,96551.0,96550.0,8.86682458]
[1733034060429,1.07572076,96551.0,96550.0,8.82539458]
[1733034060650,1.06672076,96551.0,96550.0,8.56523144]
[1733034060906,1.05772076,96551.0,96550.0,8.51966942]
[1733034061121,1.07572076,96551.0,96550.0,8.52066942]
[1733034061845,1.05772076,96551.0,96550.0,8.43680942]
[1733034062086,1.05772076,96551.0,96550.0,8.28109442]
[1733034062330,1.06672076,96551.0,96550.0,8.28109442]
[1733034062548,1.06672076,96551.0,96550.0,8.27039442]
[1733034062779,1.07572076,96551.0,96550.0,8.25067942]
[1733034063702,1.07572076,96551.0,96550.0,8.17615587]
[1733034063946,1.07572076,96551.0,96550.0,8.15544087]
[1733034064189,1.57872076,96551.0,96550.0,7.97558322]
[1733034064380,1.07572076,96551.0,96550.0,7.94966028]
[1733034064603,1.07744776,96551.0,96550.0,7.89780494]
[1733034064834,1.07744776,96551.0,96550.0,7.81474993]
[1733034065052,1.76194776,96551.0,96550.0,7.60748649]
[1733034065278,1.79549639,96551.0,96550.0,7.55686483]
[1733034065560,1.79549639,96551.0,96550.0,7.36558752]
[1733034065780,2.33089639,96551.0,96550.0,7.3172308]
[1733034066009,2.31980764,96551.0,96550.0,7.2965158]
[1733034066206,2.31980764,96551.0,96550.0,7.2758008]
[1733034066762,2.31080764,96551.0,96550.0,7.2343708]
[1733034066991,1.73530764,96551.0,96550.0,7.1722258]
[1733034067211,1.71075901,96551.0,96550.0,7.1722258]
[1733034067687,2.41075901,96551.0,96550.0,7.1515108]
[1733034068052,1.71075901,96551.0,96550.0,7.1100808]
[1733034068258,1.71075901,96551.0,96550.0,7.0686508]
[1733034068674,1.71075901,96551.0,96550.0,6.9855058]
[1733034068989,1.71075901,96551.0,96550.0,6.9647908]
[1733034069957,1.71075901,96551.0,96550.0,6.9026458]
[1733034070189,1.71075901,96551.0,96550.0,6.8232158]
[1733034070943,1.73530764,96551.0,96550.0,6.12248229]
[1733034071180,1.73530764,96551.0,96550.0,6.11472245]
[1733034071408,1.73530764,96551.0,96550.0,6.10697349]
[1733034071864,2.42630764,96551.0,96550.0,6.06554349]
[1733034072319,2.42630764,96551.0,96550.0,5.96291713]
[1733034072551,2.42630764,96551.0,96550.0,5.83481713]
[1733034072552,2.33080764,96551.0,96550.0,5.83481713]
[1733034072807,3.16278238,96551.0,96550.0,5.71252657]
[1733034073279,3.15378238,96551.0,96550.0,5.67109657]
[1733034073508,3.16278238,96551.0,96550.0,5.67109657]
[1733034073716,3.17900396,96551.0,96550.0,5.67109657]
[1733034073953,3.17900396,96551.0,96550.0,5.65038157]
[1733034074198,3.18800396,96551.0,96550.0,5.58823657]
[1733034074431,3.18800396,96551.0,96550.0,5.56752157]
[1733034074685,3.18800396,96551.0,96550.0,5.54680657]
[1733034074942,3.17929415,96551.0,96550.0,5.48466157]
[1733034075372,3.20871824,96551.0,96550.0,5.46394657]
[1733034075874,3.20871824,96551.0,96550.0,5.40180157]
[1733034076332,3.20871824,96551.0,96550.0,5.36037157]